Cogmind - Beta 15 @@@ ROGUE MODE // 2025.08.08 @ 22:31:39 Player: CoolCatCid Result: Destroyed by G-47 Trooper with Particle Gun Performance ------------- Evolutions (2) 1000 Regions Visited (5) 1000 Robots Destroyed (5) 25 Value Destroyed (74) 74 Prototype IDs (1) 20 Alien Tech Used (0) 0 Bonus (200) 200 TOTAL SCORE: 2319 Bonus ------- Entered Garrisons 200 Cogmind --------- Core Integrity 0/550 Matter 223/300 Energy 100/100 System Corruption 0% Temperature Cool (36) Movement Core (50) Location -8/Garrison Parts ------- > --- POWER (1) -------- (None) > --- PROPULSION (4) --- (None) > --- UTILITY (4) ------ Signal Interpreter Melee Analysis Suite Utility Shielding > --- WEAPON (2) ------- (None) > --- INVENTORY (5) ---- Light Ion Engine Light Nuclear Core Flight Unit Hardlight Generator Improved Datajack Peak State ------------ > --- POWER ------------ Light Deuterium Engine > --- PROPULSION ------- Flight Unit Flight Unit Flight Unit Flight Unit > --- UTILITY ---------- Signal Interpreter Melee Analysis Suite Utility Shielding Hacking Suite > --- WEAPON ----------- Heavy EM Shotgun Improved Datajack > --- INVENTORY -------- Light Ion Engine Light Nuclear Core Flight Unit Hardlight Generator Improved Datajack [Rating: 23] Favorites ----------- Power Ion Engine Engine Ion Engine Propulsion Flight Unit Wheel Wheel Flight Unit Flight Unit Utility Signal Interpreter Storage Small Storage Unit Processor Signal Interpreter Hackware Hacking Suite Protection Utility Shielding Weapon Assault Rifle Energy Gun Medium Laser Ballistic Gun Assault Rifle Special Melee Weapon Improved Datajack Build | -11 -10 -9 -8 -8 -8 ------- Run | Yrd Mat Mat Mat Sto Gar Slots Evolved 4 | . . 2 2 . . Power . | . . . . . . Propulsion 2 | . . 1 1 . . Utility 2 | . . 1 1 . . Weapon . | . . . . . . Parts Attached 18 | 6 3 4 4 1 . Power 2 | 1 . . 1 . . Engine 2 | 1 . . 1 . . Core . | . . . . . . Reactor . | . . . . . . Propulsion 7 | 2 2 1 1 1 . Treads . | . . . . . . Leg . | . . . . . . Wheel 2 | 2 . . . . . Hover . | . . . . . . Flight 5 | . 2 1 1 1 . Utility 5 | 1 1 2 1 . . Device . | . . . . . . Storage 1 | 1 . . . . . Processor 2 | . 1 . 1 . . Hackware 1 | . . 1 . . . Protection 1 | . . 1 . . . Artifact . | . . . . . . Weapon 4 | 2 . 1 1 . . Energy Gun 2 | 1 . . 1 . . Energy Cannon . | . . . . . . Ballistic Gun 1 | 1 . . . . . Ballistic Cannon . | . . . . . . Launcher . | . . . . . . Special Weapon . | . . . . . . Impact Weapon . | . . . . . . Slashing Weapon . | . . . . . . Piercing Weapon . | . . . . . . Special Melee Weapon 1 | . . 1 . . . Unidentified Prototypes 1 | . . . 1 . . Parts Lost 9 | . . . . 1 8 Power 1 | . . . . . 1 Propulsion 5 | . . . . 1 4 Utility 1 | . . . . . 1 Weapon 2 | . . . . . 2 Highest Loss Streak 4 | . . . . 1 4 To Critical Strikes . | . . . . . . Average Backups 5 | 3 7 5 4 4 4 Power 1 | . 1 1 1 2 2 Propulsion 1 | 2 2 2 1 . . Utility 1 | . 2 1 . 1 1 Weapon . | . 1 . . . . Tool/Special . | . . . . . . Unused Backups 13 | . 6 3 . . 4 Power 2 | . . . . . 2 Propulsion 4 | . 4 . . . . Utility 4 | . 1 2 . . 1 Weapon 1 | . . 1 . . . Tool/Special 2 | . 1 . . . 1 Average Slot Usage (%) 93 | . 97 97 97 96 76 Engine 10 | . 14 11 9 9 5 Wheel 4 | . 10 . . . . Flight 25 | . 17 33 36 32 27 Storage 6 | . 14 2 . . . Processor 14 | . 11 11 16 18 18 Hackware 4 | . . 7 9 9 9 Protection 5 | . . 9 9 9 9 Energy Gun 9 | . 14 2 5 9 6 Ballistic Gun 7 | . 14 11 3 . . Special Melee Weapon 3 | . . 8 9 9 1 Peak Build Rating 23 | 6 7 13 23 23 23 Average Rating 12 | 4 6 12 21 22 16 On Entrance 12 | . 6 7 13 23 23 Naked Turns . | . . . . . . Heaviest Build 15 | 14 14 15 11 11 11 Greatest Support 20 | 20 20 12 16 16 16 Greatest Overweight (x) 3 | . 3 1 . . 1 Average Overweight (x) . | . . . . . . Largest Inventory Capacity 8 | 8 8 8 5 5 5 Average Capacity 6 | 7 8 5 5 5 5 Most Carried 8 | 6 8 7 5 5 5 Average Carried 5 | 3 7 5 4 4 4 Final Capacity 8 | 8 8 5 5 5 5 Final Carried 8 | 6 8 5 5 4 5 Class Distribution -------------------- 69% | Mutant 30% | Sprinter Dominant Class ---------------- Mutant | -10/Materials Mutant | -9/Materials Sprinter | -8/Materials Mutant | -8/Storage Sprinter | -8/Garrison Resources | -11 -10 -9 -8 -8 -8 ----------- Run | Yrd Mat Mat Mat Sto Gar Matter Collected 287 | 197 72 . . . 18 Remotely . | . . . . . . Salvage Created 106 | . 88 . . . 18 Parts 10 | . 7 . . . 3 Haulers Intercepted . | . . . . . . Recyclers Shooed . | . . . . . . Parts Field Recycled . | . . . . . . Retrieved Matter . | . . . . . . Parts Self-Destructed . | . . . . . . Prevented . | . . . . . . Kills | -11 -10 -9 -8 -8 -8 ------- Run | Yrd Mat Mat Mat Sto Gar Combat Hostiles Destroyed 5 | . 4 . . . 1 Melee 1 | . . . . . 1 Guns 4 | . 4 . . . . Classes Destroyed 2 | . 2 . . . . Swarmer 4 | . 3 . . . 1 Grunt 1 | . 1 . . . . Best Kill Streak 3 | . 3 . . . 1 Combat Bots Only 3 | . 3 . . . 1 Max Kills in Single Turn 1 | . 1 . . . 1 Gunslinging . | . . . . . . Exploded . | . . . . . . Melee 1 | . . . . . 1 Uniques/NPCs Destroyed . | . . . . . . Combat | -11 -10 -9 -8 -8 -8 -------- Run | Yrd Mat Mat Mat Sto Gar Hostile Shots Fired 159 | . 23 22 7 25 82 Missed 74 | . 9 15 6 13 31 Hits 85 | . 14 7 1 12 51 Projectile 85 | . 14 7 1 12 51 Critical Strikes 6 | . 1 . . . 5 Damage Taken 1085 | . 111 93 16 189 676 Core 597 | . 16 16 . 95 470 Absorbed by Shields 60 | . . . . . 60 Redirected to Shielding 8 | . . . . . 8 Core Remaining (%) 96 | 100 93 96 . . . Volleys Fired 14 | . 12 . . 2 . Largest 2 | . 2 . . 1 . Hottest 70 | . 70 . . 50 . Shots Fired 26 | . 24 . . 2 . Gun 26 | . 24 . . 2 . Cannon . | . . . . . . Launcher . | . . . . . . Special . | . . . . . . Kinetic 12 | . 12 . . . . Thermal 12 | . 12 . . . . Explosive . | . . . . . . Electromagnetic 2 | . . . . 2 . Robot Hit Streak 6 | . 6 . . 1 . Robot Miss Streak 4 | . 4 . . 1 . Penetration Max . | . . . . . . Secondary Targets 1 | . 1 . . . . Max Gunslinging Chain 1 | . 1 . . . . Shots Hit Robots 23 | . 15 . 6 2 . Core Hits 9 | . 6 . . . 3 Critical Kills . | . . . . . . Critical Parts Destroyed . | . . . . . . Critical Strikes 1 | . 1 . . . . Burn 1 | . 1 . . . . Melee Attacks 6 | . . . 6 . . Impact . | . . . . . . Slashing . | . . . . . . Piercing . | . . . . . . Sneak Attacks 4 | . . . 4 . . Combat Hostiles . | . . . . . . Follow-up Attacks . | . . . . . . Damage Inflicted 228 | . 196 . . 25 7 Guns 221 | . 196 . . 25 . Cannons . | . . . . . . Explosions . | . . . . . . Melee . | . . . . . . Ramming 7 | . . . . . 7 Kinetic 95 | . 95 . . . . Thermal 101 | . 101 . . . . Explosive . | . . . . . . Electromagnetic 25 | . . . . 25 . Impact . | . . . . . . Slashing . | . . . . . . Piercing . | . . . . . . Highest Corruption . | . . . . . . Average Corruption . | . . . . . . Corruption Purged . | . . . . . . Corruption Blocked . | . . . . . . Overload Shots . | . . . . . . Overflow Damage . | . . . . . . Projectiles . | . . . . . . Explosions . | . . . . . . Melee . | . . . . . . Knockbacks . | . . . . . . Impact . | . . . . . . Kinetic . | . . . . . . Secondary . | . . . . . . Self-Inflicted Damage 2 | . . . . . 2 Shots . | . . . . . . Rammed 3 | . . . . . 3 Targets Rammed 3 | . . . . . 3 Kicked . | . . . . . . Crushed . | . . . . . . Highest Temperature 105 | . 105 . . 20 14 Average Temperature 31 | . 38 . . 9 8 Received Heat Transfer 478 | . . 27 . 81 370 Siege Activations . | . . . . . . Martial Activations . | . . . . . . Shielding Activations . | . . . . . . Robots Disrupted . | . . . . . . Combat Hostiles . | . . . . . . Robots Corrupted . | . . . . . . Combat Hostiles . | . . . . . . Parts Fried . | . . . . . . Impact Corruptions . | . . . . . . Robots Melted . | . . . . . . Combat Hostiles . | . . . . . . Parts Melted 1 | . 1 . . . . Heat Transferred 370 | . 370 . . . . Parts Sabotaged . | . . . . . . Parts Stolen . | . . . . . . Parts Stripped . | . . . . . . Power Chain Reactions . | . . . . . . Alert | -11 -10 -9 -8 -8 -8 ------- Run | Yrd Mat Mat Mat Sto Gar Maximum Alert Level 1 | . . . . . 1 Low Security (%) 99 | 100 100 100 100 100 95 Level 1 . | . . . . . 4 Level 2 . | . . . . . . Level 3 . | . . . . . . Level 4 . | . . . . . . Level 5 . | . . . . . . High Security . | . . . . . . Max Security . | . . . . . . Peak Influence 248 | . 70 21 15 59 248 Initial 28 | . . 16 4 . 28 Average 25 | . 16 10 2 22 88 Influence Increases 554 | . 150 25 15 74 290 Destroy 0b10 Robot/C 100 | . 80 . . . 20 Destroy Leader 10 | . 10 . . . . Successful Hack 24 | . . 10 . 14 . Partial Spotted 45 | . . 15 . 15 15 Lose Combat Pursuer 375 | . 60 . 15 45 255 Influence Decreases 316 | . 110 54 26 30 96 Entered New Map 47 | . . 24 7 . 16 Time Decay 189 | . 110 30 19 30 . Lost Part 80 | . . . . . 80 Squads Dispatched 5 | . 1 . 2 2 . Investigation 1 | . . . . 1 . Extermination . | . . . . . . Reinforcement 4 | . 1 . 2 1 . Assault . | . . . . . . Garrison . | . . . . . . Intercept . | . . . . . . Searches Triggered . | . . . . . . Construction Impeded . | . . . . . . Haulers Reinforced . | . . . . . . Active Scanning Responses . | . . . . . . Cargo Convoy Interrupts . | . . . . . . Stealth | -11 -10 -9 -8 -8 -8 --------- Run | Yrd Mat Mat Mat Sto Gar Distress Signals 4 | . 1 . . 3 . Communications Jammed . | . . . . . . Distress Signals . | . . . . . . Times Spotted 66 | . 10 7 6 18 25 Peak Tracking Total 14 | . 4 7 5 14 12 Tactical Retreats 8 | . 2 . 1 1 4 Traps | -11 -10 -9 -8 -8 -8 ------- Run | Yrd Mat Mat Mat Sto Gar Traps Triggered 4 | . . . . . 4 Indirectly . | . . . . . . Trap Hack Attempts . | . . . . . . Triggered . | . . . . . . Disarmed . | . . . . . . Reprogrammed . | . . . . . . Reused . | . . . . . . Traps Extracted . | . . . . . . Installed . | . . . . . . Triggered . | . . . . . . Machines | -11 -10 -9 -8 -8 -8 ---------- Run | Yrd Mat Mat Mat Sto Gar Machines Disabled . | . . . . . . Max in Single Turn . | . . . . . . Machines Repaired . | . . . . . . Machines Dismantled . | . . . . . . Machines Sabotaged . | . . . . . . Overloaded Fab Kills . | . . . . . . Hacking | -11 -10 -9 -8 -8 -8 --------- Run | Yrd Mat Mat Mat Sto Gar Machines Accessed 8 | . 1 2 . 4 1 Terminals 7 | . 1 2 . 3 1 Fabricators . | . . . . . . Repair Stations . | . . . . . . Recycling Units . | . . . . . . Scanalyzers . | . . . . . . Garrison Access 1 | . . . . 1 . Total Hacks 14 | . 2 5 . 6 1 Successful 9 | . 1 4 . 3 1 Failed 5 | . 1 1 . 3 . Catastrophic 2 | . . . . 2 . Database Lockouts . | . . . . . . Manual 1 | . . 1 . . . Terminals 13 | . 2 5 . 5 1 Fabricators . | . . . . . . Repair Stations . | . . . . . . Recycling Units . | . . . . . . Scanalyzers . | . . . . . . Garrison Access 1 | . . . . 1 . Terminal Hacks 8 | . 1 4 . 2 1 Record 1 | . . 1 . . . Robot Analysis 1 | . . . . 1 . Emergency Access Points 1 | . . . . . 1 Alert Level 1 | . . . . 1 . Locate Traps 1 | . . 1 . . . Patrol Status 1 | . . 1 . . . Zone Layout 2 | . 1 1 . . . Fabricator Hacks . | . . . . . . Repair Station Hacks . | . . . . . . Recycling Unit Hacks . | . . . . . . Scanalyzer . | . . . . . . Garrison Access Hacks 1 | . . . . 1 . Unlock Access 1 | . . . . 1 . Unauthorized Hacks . | . . . . . . Terminals . | . . . . . . Fabricators . | . . . . . . Repair Stations . | . . . . . . Recycling Units . | . . . . . . Scanalyzers . | . . . . . . Garrison Access . | . . . . . . Data Cores Recovered . | . . . . . . Used . | . . . . . . Hacking Detections 4 | . . . . 3 1 Full Trace Events 1 | . . . . 1 . Feedback Events . | . . . . . . Feedback Blocked . | . . . . . . Robot Schematics Acquired . | . . . . . . Robots Built . | . . . . . . Authchips . | . . . . . . Time . | . . . . . . Total Robot Build Rating . | . . . . . . Part Schematics Acquired . | . . . . . . Parts Built . | . . . . . . Authchips . | . . . . . . Time . | . . . . . . Total Part Build Rating . | . . . . . . Parts Repaired . | . . . . . . Time . | . . . . . . Parts Recycled . | . . . . . . Recycled Matter . | . . . . . . Retrieved Matter . | . . . . . . Retrieved Components . | . . . . . . Parts Scanalyzed . | . . . . . . Part Schematics Acquired . | . . . . . . Parts Damaged . | . . . . . . Bothacking | -11 -10 -9 -8 -8 -8 ------------ Run | Yrd Mat Mat Mat Sto Gar Used RIF Installer . | . . . . . . Robots Hacked 4 | . . . 4 . . Non-combat 2 | . . . 2 . . Combat 2 | . . . 2 . . Robot Hacks Applied 5 | . . . 5 . . parse_system 4 | . . . 4 . . find_recycling 1 | . . . 1 . . Relay Couplers Released . | . . . . . . Fabnet Peak Effective % . | . . . . . . Robots Rewired . | . . . . . . Allies Hacked . | . . . . . . Hacks Repelled . | . . . . . . Allies | -11 -10 -9 -8 -8 -8 -------- Run | Yrd Mat Mat Mat Sto Gar Total Allies . | . . . . . . Largest Group . | . . . . . . Highest-Rated Group . | . . . . . . Highest-Rated Ally . | . . . . . . Total Orders . | . . . . . . Ally Attacks . | . . . . . . Total Damage . | . . . . . . Kills . | . . . . . . Allies Corrupted . | . . . . . . Allies Melted . | . . . . . . Intel | -11 -10 -9 -8 -8 -8 ------- Run | Yrd Mat Mat Mat Sto Gar Active Infowar (turns) . | . . . . . . Robot Analysis Total 1 | . . . . 1 . Derelict Logs Recovered . | . . . . . . Drone Launches . | . . . . . . Drone Recoveries . | . . . . . . Exploration | -11 -10 -9 -8 -8 -8 ------------- Run | Yrd Mat Mat Mat Sto Gar Turns Passed 916 | 50 386 76 134 119 151 Spaces Moved 1315 | 45 255 189 201 351 274 Core 6 | 3 . . . . 3 Treads . | . . . . . . Legs . | . . . . . . Wheels 185 | 42 143 . . . . Hover . | . . . . . . Flight 1124 | . 112 189 201 351 271 Fastest Speed 31 | 50 80 34 31 31 31 Average Speed 47 | 78 96 34 31 32 35 Slowest Speed 285 | 80 285 114 31 34 117 Overloaded Moves . | . . . . . . Propulsion Burnouts . | . . . . . . Robots Hopped . | . . . . . . Potential Cave-ins . | . . . . . . Cave-ins Triggered . | . . . . . . Exploration Rate (%) 29 | 3 37 19 21 59 37 Regions Visited 5 Branch Regions 1 Pre-discovered Areas . | . . . . . . Known Exits Taken 4 | . 1 1 1 1 . Unknown Exits Taken 1 | 1 . . . . . Scrap Searched . | . . . . . . Spaces Dug . | . . . . . . Terrain Destroyed . | . . . . . . Melee . | . . . . . . Projectile . | . . . . . . AOE . | . . . . . . Terrain Rammed . | . . . . . . Walls Destroyed . | . . . . . . Machines Disabled . | . . . . . . Actions | -11 -10 -9 -8 -8 -8 --------- Run | Yrd Mat Mat Mat Sto Gar Total 1581 | 56 372 200 271 354 328 Wait 142 | . 85 . 57 . . Move 1310 | 44 254 188 200 351 273 Hop . | . . . . . . Pick Up 22 | 6 10 3 2 . 1 Fast Attach 10 | 6 1 1 2 . . Attach 6 | . . 3 2 1 . Detach . | . . . . . . Swap 2 | . 2 . . . . Drop 15 | . 8 5 2 . . Fire 14 | . 12 . . 2 . Melee 6 | . . . 6 . . Ram 3 | . . . . . 3 Kick . | . . . . . . Crush . | . . . . . . Escape Stasis 51 | . . . . . 51 Rewire . | . . . . . . Trap . | . . . . . . Miscellaneous . | . . . . . . Route ------- -11/Scrapyard -10/Materials -9/Materials -8/Materials -8/Storage -8/Garrison (discovered 1 exit: *Fac) History --------- Turn | Location | Event 28 | -11/Scrapyard | Discovered new exit (range 15) 51 | -11/Scrapyard | Entered Materials 314 | -10/Materials | Build established: Mutant 428 | -10/Materials | Discovered new exit (range 9) 436 | -10/Materials | Identified exit to Materials 437 | -10/Materials | Entered another Materials area 437 | -9/Materials | Evolved 2 slots: Propulsion x1, Utility x1 511 | -9/Materials | Discovered new exit (range 7) 513 | -9/Materials | Identified exit to Materials 513 | -9/Materials | Entered another Materials area 513 | -8/Materials | Evolved 2 slots: Propulsion x1, Utility x1 516 | -8/Materials | Discovered new exit (range 15) 646 | -8/Materials | Identified exit to Storage 647 | -8/Materials | Entered Storage 766 | -8/Storage | Identified exit to Garrison 766 | -8/Storage | Entered Garrison 808 | -8/Garrison | Discovered new exit (range 11) 850 | -8/Garrison | Triggered checkpoint 857 | -8/Garrison | Identified exit to Factory 858 | -8/Garrison | Attempted to access garrison exit controls, blocked by remote lockdown 887 | -8/Garrison | Core integrity fell below 50% 889 | -8/Garrison | Triggered checkpoint 895 | -8/Garrison | Lost 4 parts (1p2n1w) 898 | -8/Garrison | Triggered checkpoint 914 | -8/Garrison | Core integrity fell below 20% 917 | -8/Garrison | Destroyed by G-47 Trooper with Particle Gun Last Messages --------------- 00886_ Critical hit (Burn: +26). 00886_ Stasis field depleted. 00889_ Beams of light sweep through the air. An alarm sounds. 00898_ Flight Unit destroyed. 00899_ Critical hit (Burn: +37). 00912_ Flight Unit destroyed. 00913_ Slammed into S-10 Pest. 00913_ S-10 Pest destroyed. [Achievement: Fist Fight] 00914_ Acquired 18 matter. 00914_ Slammed into S-10 Pest. 00914_ Destabilizing: System interference. 00914_ Signal Interpreter temporarily disabled. 00915_ Critical hit (Burn: +37). 00915_ Hacking Suite destroyed. 00915_ Slammed into S-10 Pest. 00915_ Destabilizing: System interference. 00915_ Melee Analysis Suite temporarily disabled. 00916_ Acquired Flight Unit. 00917_ Critical hit (Burn: +37). Map ----- +----------------------------------------------------+ | | | | | | | | | | | ?????????????????????????????????????????????????? | | ?????????????????????????????????????????????????? | | ?????????????????????????????????????????????????? | | ?????????????????????????????????????????????????? | | ?????????????????????????????????????????????????? | | ?????????????????????#####???????????????????????? | | ?????????????????????? ???????????????????????? | | ??????????????????????" "???????????????????????? | | ??????????????????????" "???????????????????????? | | ??????????????????????" "????#??????????????????? | | ?????????????????# """" """" #??????????????????? | | ?????????????????# #??????????????????? | | ?????????????????# #??????????????????? | | ?????????????????# """" """" #??????????????????? | | ??????????????????????" "????#??????????????????? | | ??????????????????????" "????#??????????????????? | | ?????????????????# """" """" #??????????????????? | | ?????????????????# #??????????????????? | | ?????????????????#### ####??????????????????? | | ????????????????????##### #?????????????????????? | | ????????????????????????#@s######!!#?????????????? | | ????????????????????????# gg #?????????????? | | ????????????????????????#[g#+####!!#?????????????? | | ?????????######?????????#s #?????????????????????? | | ?????????# #?????????# g#?????????????????????? | | ?????????# #??????##?#g #?????????????????????? | | ?????+???# #??????#"## #+#???????????????????? | | ?????????### #??????#" #???????????????????? | | ???+???+???# #??????#" s #???????????????????? | | ???????????+ #??????#" #???????????????????? | | ???+???+???# #??????#"## ###???????????????????? | | ???????????# #??????##?# #????????????????###### | | ?????+?????# ########### ###########??????# | | ???????????# #??????# | | ???????????# +??????# | | ???????????############## ####+### ##?????# ## | | ????????????????????????# #??????# T#?????# #? | | ????????????????????????# #??????# ##?????# #? | | ????????????????????????# #??????# #??????+ +? | | ????????????????????????# #??????# #??????# ^#? | | ????????????????????????# +??????+ ###+#+## ^#? | | ????????????????????????# #??????# ## ## #? | | ????????????????????????# #?????## ## ## #? | | ????????????????????????# ###+### #? | | ????????????????????????# +? | +----------------------------------------------------+ Best States ------------- Heat Dissipation 31 Energy Generation 14 Energy Capacity 250 Matter Stores 243 Matter Capacity 300 Sight Range 16 Terrain Scan Density 10 Utility Shielding 33 Evasion (%) 63 Melee Accuracy 5 Offensive Hacking 10 Item Schematics ----------------- None Robot Schematics ------------------ None Fabricated ------------ Nothing Repaired ---------- Nothing Alien Tech Used ----------------- None Achievements -------------- Fist Fight Challenges ------------ None Game ------ Seed SniperLegChainsaw Manual? 0 Play Time 00:33:01 Cumulative 16.5 hours Start 2025.08.08 @ 21:54:09 End 2025.08.08 @ 22:31:39 Sessions 1 Manual Loads 0 Difficulty Rogue Special Mode None Game No. 19 Rogue 19 Adventurer 0 Explorer 0 Win Type - Total 0 Types 0/0/0/0/0/0/0/0/0/0 Lore% 13 Gallery% 17 Achievement% 17 Wizard Run 0 Options --------- Layout 1 ASCII 0 Keyboard 0 Movement Arrows Keybinds 0 Fullscreen 1 Font 32/SmallcapsGlow Map View 77x35 Zoom Use 0% Tactical HUD 1 Map Filters NONE Filters NONE Steam 1 RUN: e42ddc6d-35d2-4fb7-b33a-6d026bc3f3f8